Cogmind - Beta 10.2 @@@ ROGUE MODE // 2021.10.09 @ 20:16:08 Player: derk Result: Destroyed by B-75 Beast with Heavy Machine Gun Performance ------------- Evolutions (5) 2500 Regions Visited (14) 2800 Robots Destroyed (228) 1140 Value Destroyed (9302) 9302 Prototype IDs (34) 680 Alien Tech Used (0) 0 Bonus (5356) 5356 TOTAL SCORE: 21778 Bonus ------- High Alert Combat Kills 2837 Follower Combat Kills 827 Entered Garrisons 400 Used RIF Installer 1000 Aligned with FarCom 300 Friendly Fire -8 Cogmind --------- Core Integrity 0/1000 Matter 550/550 Energy 568/600 System Corruption 7% Temperature Cool (10) Movement Core (800) Ox15 Location -5/Upper Caves Parts ------- > --- POWER (1) -------- (None) > --- PROPULSION (4) --- (None) > --- UTILITY (10) ----- High-capacity Storage Unit Energy Well Matter Compressor Improved Target Analyzer Microactuators Hacking Suite Advanced System Shield Improved Trap Extractor > --- WEAPON (2) ------- (None) > --- INVENTORY (12) --- Vortex Chain Reactor Firepult Gauss Rifle Improved Remote Datajack Impact Mace Dirty Bomb Trap Dirty Bomb Trap Peak State ------------ > --- POWER ------------ Cold Fusion Reactor > --- PROPULSION ------- Heavy Treads Improved Heavy Treads > --- UTILITY ---------- Advanced Cooling System High-capacity Storage Unit High-capacity Storage Unit High-capacity Storage Unit High-capacity Storage Unit Damper Plating Improved System Shield Relay Coupler [NC] > --- WEAPON ----------- Flak Gun Coil Gun > --- INVENTORY -------- Vortex Chain Reactor Energy Well Matter Compressor Weapon Cycler Layered Medium Armor Plating Layered Medium Armor Plating Damper Plating Experimental Focal Shield Hacking Suite Relay Coupler [NC] Relay Coupler [NC] Relay Coupler [NC] Relay Coupler [Swarmer] System Backup Module Improved Trap Extractor Improved Trap Extractor Firepult Advanced EMP Blaster Smartbomb Launcher Improved Datajack Improved Remote Datajack Axe [Rating: 89] Favorites ----------- Power Light Angular Momentum Engine Engine Light Angular Momentum Engine Power Core Light Nuclear Core Reactor Cold Fusion Reactor Propulsion Light Treads Treads Light Treads Leg Flexi-carbon Leg Wheel Armored Huge Wheel Hover Unit Antigrav System Utility High-capacity Storage Unit Device Structural Scanner Storage High-capacity Storage Unit Processor Salvage Targeting Computer Hackware Hacking Suite Protection Layered Medium Armor Plating Weapon Assault Rifle Energy Gun Tesla Rifle Energy Cannon Improved EM Pulse Cannon Ballistic Gun Assault Rifle Ballistic Cannon Magnetic Acceleration Cannon Launcher Advanced EMP Blaster Special Weapon Improved Remote Datajack Impact Weapon Impact Mace Slashing Weapon Axe Special Melee Weapon Improved Datajack Build | -11 -10 -10 -10 -9 -8 -7 -6 -6 -6 -6 -5 -5 -5 -5 ------- Run | Scr Mat Min Exi Min Mat Fac Fac Gar Fac Gar Fac Was Fac Upp Slots Evolved 10 | . . . . . 4 2 2 . . . 2 . . . Power . | . . . . . . . . . . . . . . . Propulsion 2 | . . . . . 1 1 . . . . . . . . Utility 8 | . . . . . 3 1 2 . . . 2 . . . Weapon . | . . . . . . . . . . . . . . . Parts Attached 313 | 7 15 5 2 3 51 51 32 28 16 10 8 6 69 10 Power 23 | 1 2 1 . 1 3 2 2 1 1 . . 1 8 . Engine 10 | 1 1 1 . 1 . 1 . 1 1 . . 1 2 . Core 10 | . 1 . . . 3 1 2 . . . . . 3 . Reactor 3 | . . . . . . . . . . . . . 3 . Propulsion 66 | 2 7 2 . 2 17 9 2 5 3 . . 2 11 4 Treads 50 | 2 5 2 . 2 17 6 . 3 3 . . 2 6 2 Leg 3 | . 2 . . . . . . . . . . . . 1 Wheel 12 | . . . . . . 3 2 2 . . . . 4 1 Hover 1 | . . . . . . . . . . . . . 1 . Flight . | . . . . . . . . . . . . . . . Utility 96 | 1 3 . 2 . 12 18 10 8 4 3 6 1 24 4 Device 43 | . . . . . 8 9 5 3 2 3 2 . 9 2 Storage 14 | 1 2 . 2 . 1 . 1 . 1 . . . 4 2 Processor 4 | . 1 . . . 1 . . 1 . . . . 1 . Hackware 12 | . . . . . . 1 1 1 1 . 3 . 5 . Protection 23 | . . . . . 2 8 3 3 . . 1 1 5 . Artifact . | . . . . . . . . . . . . . . . Weapon 128 | 3 3 2 . . 19 22 18 14 8 7 2 2 26 2 Energy Gun 9 | 2 . . . . 1 . . . . . . . 5 1 Energy Cannon 12 | . . . . . . 3 5 1 . 1 . . 2 . Ballistic Gun 49 | 1 3 2 . . 12 7 4 5 3 2 . . 10 . Ballistic Cannon 6 | . . . . . . 2 2 1 1 . . . . . Launcher 8 | . . . . . 1 . 2 2 . . . . 2 1 Special Weapon 3 | . . . . . . . . . . . . 1 2 . Impact Weapon 2 | . . . . . . . . . . . . . 2 . Slashing Weapon 18 | . . . . . . 4 3 2 1 4 1 1 2 . Piercing Weapon . | . . . . . . . . . . . . . . . Special Melee Weapon 21 | . . . . . 5 6 2 3 3 . 1 . 1 . Unidentified Prototypes 8 | . . . . . 3 . 1 . . . . . 4 . Parts Lost 77 | . 1 5 . . 7 5 3 7 4 . . . 33 12 Power 10 | . 1 1 . . 1 1 1 1 1 . . . 2 1 Propulsion 30 | . . 2 . . 3 3 . 3 3 . . . 10 6 Utility 17 | . . . . . 2 1 . . . . . . 12 2 Weapon 20 | . . 2 . . 1 . 2 3 . . . . 9 3 Highest Loss Streak 11 | . 1 3 . . 2 2 2 2 2 . . . 11 7 Average Slot Usage (%) 91 | . 94 99 100 100 98 95 84 92 95 100 100 93 74 75 Engine 3 | . 7 11 14 14 . 2 . 3 4 6 5 5 1 . Core 3 | . 3 2 . . 8 4 5 2 . . . . 1 4 Treads 17 | . 27 28 28 28 27 20 . 10 13 26 23 16 8 7 Wheel 3 | . . . . . . 4 12 8 9 . . . 1 8 Device 7 | . . . . . 10 8 7 11 10 13 6 5 6 5 Storage 22 | . 14 14 20 28 24 23 26 26 26 26 23 23 20 16 Processor 3 | . 12 14 7 . 6 2 . 3 . . . . . 5 Hackware 7 | . . . . . . 5 12 7 8 6 21 17 13 11 Protection 3 | . . . . . 3 4 4 2 6 6 5 11 4 . Energy Cannon 1 | . . . . . . 1 2 1 . . 5 5 . . Ballistic Gun 9 | . 26 27 28 28 14 8 3 8 3 9 . . 2 . Slashing Weapon 1 | . . . . . . 1 4 1 1 1 3 2 2 . Special Melee Weapon 1 | . . . . . 2 1 . . 3 . 2 . 1 . Naked Turns . | . . . . . . . . . . . . . . . Heaviest Build 198 | 11 25 25 73 73 112 125 158 160 158 157 165 166 198 59 Greatest Support 145 | 40 40 40 40 48 68 80 56 56 98 98 98 140 145 56 Greatest Overweight (x) 37 | . 1 . 1 2 1 5 2 6 6 1 1 1 37 5 Average Overweight (x) 1 | . . . . 1 1 2 2 3 4 1 1 1 2 1 Largest Inventory Capacity 36 | 6 10 10 20 20 28 28 36 36 36 36 36 36 36 12 Average Capacity 27 | 5 9 10 14 20 25 28 36 36 36 36 36 36 31 12 Most Carried 36 | 4 10 10 14 19 28 28 36 35 32 35 35 36 36 12 Average Carried 23 | 2 8 8 11 18 21 25 30 30 30 32 33 34 27 11 Final Capacity 36 | 6 10 10 20 20 28 28 36 36 36 36 36 36 12 12 Final Carried 36 | 4 10 8 14 19 28 27 30 33 32 35 33 36 10 9 Class Distribution -------------------- 63% | Hauler-Mutant 14% | Mutant 8% | Scavenger-Mutant 6% | Trapper-Mutant 5% | Bothacker-Mutant Dominant Class ---------------- Mutant | -10/Materials Mutant | -10/Mines Mutant | -10/Exiles Hauler-Mutant | -9/Mines Hauler-Mutant | -8/Materials Hauler-Mutant | -7/Factory Hauler-Mutant | -6/Factory Hauler-Mutant | -6/Garrison Hauler-Mutant | -6/Factory Hauler-Mutant | -6/Garrison Bothacker-Mutant | -5/Factory Hauler-Mutant | -5/Waste Hauler-Mutant | -5/Factory Scavenger-Mutant | -5/Upper Caves Resources | -11 -10 -10 -10 -9 -8 -7 -6 -6 -6 -6 -5 -5 -5 -5 ----------- Run | Scr Mat Min Exi Min Mat Fac Fac Gar Fac Gar Fac Was Fac Upp Matter Collected 7549 | 250 449 181 . 27 1366 912 499 792 405 271 80 40 1939 338 Remotely . | . . . . . . . . . . . . . . . Salvage Created 10895 | 96 642 233 . 20 2007 862 629 1551 365 385 115 . 3808 182 Parts 486 | 3 43 8 . 3 97 35 29 60 19 14 9 . 156 10 Haulers Intercepted 9 | . 2 . . . 4 2 . . 1 . . . . . Recyclers Shooed 5 | . . . . . 1 . . . 1 . . . 3 . Parts Field Recycled . | . . . . . . . . . . . . . . . Retrieved Matter . | . . . . . . . . . . . . . . . Parts Self-Destructed 1 | . . . . . . . . . . . . . . 1 Prevented . | . . . . . . . . . . . . . . . Kills | -11 -10 -10 -10 -9 -8 -7 -6 -6 -6 -6 -5 -5 -5 -5 ------- Run | Scr Mat Min Exi Min Mat Fac Fac Gar Fac Gar Fac Was Fac Upp Combat Hostiles Destroyed 168 | . 15 6 . . 33 11 13 22 8 7 2 . 48 3 Melee 3 | . . . . . . . 2 . . . . . 1 . Guns 96 | . 15 6 . . 28 5 4 6 7 7 . . 18 . Cannons 12 | . . . . . . 3 3 2 1 . 2 . 1 . AOE 35 | . . . . . 5 . 3 7 . . . . 17 3 Classes Destroyed 18 | 1 6 . . 1 3 3 1 . . . . . 1 2 Worker 10 | . 1 . . . 1 1 . . 1 . . . 6 . Builder 15 | . . . . . . 2 . . . . . . 13 . Tunneler 3 | . . . . 1 . . . . . . . . 2 . Hauler 9 | . 2 . . . 4 2 . . 1 . . . . . Recycler 9 | 1 . . . . 3 1 . . . . . . 4 . Minesweeper 1 | . . . . . . . . . . . . . . 1 Mechanic 1 | . . . . . . 1 . . . . . . . . Operator 7 | . 1 . . . 4 1 . . . . . . 1 . Watcher 5 | . 2 . . . . 1 1 . . . . . 1 . Swarmer 33 | . 6 1 . . 7 . 5 . 6 . . . 5 3 Grunt 82 | . 9 5 . . 18 5 . 13 1 6 . . 25 . Brawler 4 | . . . . . . . 1 1 . . . . 2 . Duelist 5 | . . . . . 1 . . 2 . . . . 2 . Protector 2 | . . . . . . . . . . . . . 2 . Sentry 13 | . . . . . 5 . 3 2 1 . . . 2 . Hunter 13 | . . . . . 2 1 . 3 . . . . 7 . Programmer 16 | . . . . . . 5 4 1 . 1 2 . 3 . Samaritan 2 | . . . . . . . . . . . . . . 2 Best Kill Streak 15 | 1 6 2 . 1 7 3 4 9 4 3 2 . 15 3 Combat Bots Only 9 | . 4 2 . . 7 3 4 9 3 3 2 . 9 3 Max Kills in Single Turn 4 | 1 2 1 . 1 2 1 1 1 2 1 1 . 4 3 Gunslinging 1 | . 1 . . . . . . . . . . . . . Exploded 4 | . . . . . 2 . 1 1 . . . . 4 3 Melee 1 | . . . . . . . 1 . . . . . 1 . Uniques/NPCs Destroyed . | . . . . . . . . . . . . . . . Combat | -11 -10 -10 -10 -9 -8 -7 -6 -6 -6 -6 -5 -5 -5 -5 -------- Run | Scr Mat Min Exi Min Mat Fac Fac Gar Fac Gar Fac Was Fac Upp Damage Taken 16973 | . 597 613 . . 1905 1371 1152 1952 936 416 205 . 7077 749 Core 2034 | . 121 88 . . 245 187 77 136 102 59 20 . 795 204 Absorbed by Shields 105 | . . . . . . . . 105 . . . . . . Core Remaining (%) 60 | 100 . . . 16 55 73 . . . 56 . . . . Volleys Fired 622 | 3 41 26 . 2 129 67 42 56 25 24 7 . 199 1 Largest 2 | 2 2 2 . 2 2 2 2 2 2 2 1 . 2 1 Hottest 250 | 60 60 40 . 40 53 81 105 97 78 105 80 . 250 46 Shots Fired 1029 | 6 82 52 . 4 253 108 59 84 47 47 7 . 278 2 Gun 821 | 6 82 52 . 4 250 76 22 51 35 39 . . 203 1 Cannon 112 | . . . . . . 32 32 4 12 8 7 . 17 . Launcher 79 | . . . . . 3 . 5 29 . . . . 41 1 Special 17 | . . . . . . . . . . . . . 17 . Kinetic 829 | 3 75 52 . 4 250 91 28 51 47 39 . . 189 . Thermal 35 | . . . . . . . 3 . . 8 7 . 17 . Explosive 11 | . . . . . . . . . . . . . 10 1 Electromagnetic 137 | 3 7 . . . 3 17 28 33 . . . . 45 1 Robot Hit Streak 36 | 4 17 36 . 5 26 14 9 8 12 13 10 . 14 . Robot Miss Streak 7 | 1 2 1 . . 7 6 4 7 6 3 . . 5 . Penetration Max 2 | . . . . . 1 . . . . 1 . . 2 . Secondary Targets 10 | . 2 1 . . 1 . . 2 1 1 . . 2 . Max Gunslinging Chain 1 | . 1 1 . . 1 . . 1 1 1 . . 1 . Shots Hit Robots 830 | 4 62 43 . 4 192 87 47 73 42 35 9 3 226 3 Core Hits 476 | 2 31 14 . 1 74 27 21 74 32 20 4 . 172 4 Critical Hits 36 | . 1 . . . 5 1 . 1 . 1 . 1 26 . Critical Kills 12 | . . . . . 1 . . . . . . . 11 . Critical Parts Destroyed 23 | . 1 . . . 4 1 . 1 . 1 . . 15 . Melee Attacks 100 | . . . . . 1 11 14 15 18 6 7 3 22 3 Impact 7 | . . . . . . . . . . . . . 4 3 Slashing 75 | . . . . . . 11 14 13 12 6 3 3 13 . Piercing . | . . . . . . . . . . . . . . . Sneak Attacks 25 | . . . . . 1 1 2 . 4 . 3 . 11 3 Combat Hostiles 1 | . . . . . . . . . . . 1 . . . Follow-up Attacks . | . . . . . . . . . . . . . . . Damage Inflicted 23563 | 54 843 547 . 52 3572 2051 1596 3684 731 795 189 147 8749 553 Guns 11169 | 54 738 547 . 52 3411 1075 330 839 489 613 . . 3021 . Cannons 2629 | . . . . . . 840 716 120 242 182 189 . 340 . Explosions 7334 | . 105 . . . 161 . 217 1910 . . . . 4620 321 Melee 2431 | . . . . . . 136 333 815 . . . 147 768 232 Ramming . | . . . . . . . . . . . . . . . Kinetic 11614 | 26 673 547 . 52 3411 1432 474 839 731 613 . . 2816 . Thermal 1650 | . 105 . . . 64 . 94 347 . 182 189 . 669 . Explosive 2182 | . . . . . . . . . . . . . 1861 321 Electromagnetic 5686 | 28 65 . . . 97 483 695 1683 . . . . 2635 . Impact 432 | . . . . . . . . . . . . . 200 232 Slashing 1999 | . . . . . . 136 333 815 . . . 147 568 . Piercing . | . . . . . . . . . . . . . . . Highest Corruption 7 | . . . . . 2 4 2 5 4 4 1 1 7 7 Average Corruption 2 | . . . . . 2 2 1 3 4 2 1 1 1 7 Corruption Purged 10 | . . . . . . 3 1 1 . 4 . . 1 . Effects 141 | . . . . . 4 34 3 26 17 5 . 1 22 29 Message Errors 36 | . . . . . 1 10 2 4 5 . . 1 6 7 Matter Fused 25 | . . . . . . 8 . 5 3 3 . . 1 5 Heat Flow Errors 17 | . . . . . 2 3 . 3 . . . . 1 8 Energy Discharges 26 | . . . . . 1 2 1 5 6 1 . . 5 5 Data Loss (minor) 22 | . . . . . . 6 . 6 3 1 . . 3 3 Data Loss (major) 1 | . . . . . . . . . . . . . 1 . Misfires 2 | . . . . . . . . 1 . . . . . 1 Targeting Errors 12 | . . . . . . 5 . 2 . . . . 5 . Overload Shots . | . . . . . . . . . . . . . . . Overflow Damage 808 | . 18 . . . . 67 119 119 3 30 . . 375 77 Projectiles 87 | . . . . . . 7 47 . 3 30 . . . . Explosions 250 | . 18 . . . . . 12 12 . . . . 208 . Melee 471 | . . . . . . 60 60 107 . . . . 167 77 Knockbacks 9 | . . . . . . 6 1 . . . . . 1 1 Impact 2 | . . . . . . . . . . . . . 1 1 Kinetic 6 | . . . . . . 5 1 . . . . . . . Secondary 1 | . . . . . . 1 . . . . . . . . Self-Inflicted Damage 585 | . 76 . . . . . 48 275 . . . . 164 22 Shots 32 | . 2 . . . . . 2 16 . . . . 11 1 Rammed . | . . . . . . . . . . . . . . . Targets Rammed . | . . . . . . . . . . . . . . . Kicked . | . . . . . . . . . . . . . . . Crushed . | . . . . . . . . . . . . . . . Highest Temperature 462 | . 12 19 . . 244 206 218 184 111 80 . . 462 318 Average Temperature 45 | . 5 7 . . 18 40 60 39 37 24 . . 82 105 Received Heat Transfer 3759 | . 189 354 . . 711 210 165 444 117 126 27 . 1404 12 Effects 2 | . . . . . . . . . . . . . 2 . Shutdowns 1 | . . . . . . . . . . . . . 1 . Energy Bleed 1 | . . . . . . . . . . . . . 1 . Siege Activations . | . . . . . . . . . . . . . . . Robots Corrupted 22 | . . . . . . 4 2 7 . . . . 9 . Combat Hostiles 19 | . . . . . . 3 1 7 . . . . 8 . Parts Fried 56 | . . . . . . 6 4 12 . . . . 30 4 Impact Corruptions 9 | . . . . . . . . . . . . . 7 2 Robots Melted 3 | . . . . . . . . . . . . . 3 . Combat Hostiles 3 | . . . . . . . . . . . . . 3 . Parts Melted 10 | . 1 . . . . . . . . . 1 . 8 . Heat Transferred 3996 | . 100 . . . 150 . 150 323 . 300 300 . 2673 . Parts Sabotaged 3 | . . . . . . . . . . . . . 3 . Parts Stolen . | . . . . . . . . . . . . . . . Parts Stripped . | . . . . . . . . . . . . . . . Power Chain Reactions 12 | . 2 . . . 3 . . 3 . . . . 4 . Missiles Intercepted . | . . . . . . . . . . . . . . . Alert | -11 -10 -10 -10 -9 -8 -7 -6 -6 -6 -6 -5 -5 -5 -5 ------- Run | Scr Mat Min Exi Min Mat Fac Fac Gar Fac Gar Fac Was Fac Upp Peak Influence 2323 | 5 224 113 . 5 771 367 282 851 562 643 416 84 2323 . Initial 446 | . 3 43 . . 1 322 120 110 446 393 337 76 . . Average 355 | 1 72 28 . 1 325 114 122 563 431 495 319 46 1041 . Maximum Alert Level 5 | . 1 . . . 3 1 1 3 2 2 2 . 5 . Low Security (%) 55 | 100 94 100 . 100 37 79 89 7 . . . 100 34 . Level 1 13 | . 5 . . . 19 20 10 8 16 14 92 . . . Level 2 17 | . . . . . 41 . . 54 83 85 7 . . . Level 3 3 | . . . . . 1 . . 29 . . . . 3 . Level 4 5 | . . . . . . . . . . . . . 33 . Level 5 4 | . . . . . . . . . . . . . 27 . High Security . | . . . . . . . . . . . . . . . Max Security . | . . . . . . . . . . . . . . . Squads Dispatched 56 | . 3 . . . 13 10 4 . 5 . 3 . 18 . Investigation 7 | . 2 . . . . 2 1 . . . 1 . 1 . Extermination 14 | . . . . . . 6 3 . . . 2 . 3 . Reinforcement 12 | . 1 . . . 5 2 . . . . . . 4 . Assault 11 | . . . . . 2 . . . . . . . 9 . Garrison 12 | . . . . . 6 . . . 5 . . . 1 . Intercept . | . . . . . . . . . . . . . . . Construction Impeded 4 | . . . . . 1 . . . . . . . 3 . Haulers Reinforced 2 | . . . . . . 1 . . . . . . 1 . Stealth | -11 -10 -10 -10 -9 -8 -7 -6 -6 -6 -6 -5 -5 -5 -5 --------- Run | Scr Mat Min Exi Min Mat Fac Fac Gar Fac Gar Fac Was Fac Upp Distress Signals 19 | . . . . . 12 1 3 . 1 . . . 2 . Communications Jammed . | . . . . . . . . . . . . . . . Distress Signals . | . . . . . . . . . . . . . . . Times Spotted 324 | . 21 8 . 2 75 31 23 27 14 7 4 1 103 8 Peak Tracking Total 10 | . 4 3 . 5 9 3 4 6 3 3 4 1 10 6 Tactical Retreats 32 | . . . . . 6 4 5 3 . . 1 . 13 . Traps | -11 -10 -10 -10 -9 -8 -7 -6 -6 -6 -6 -5 -5 -5 -5 ------- Run | Scr Mat Min Exi Min Mat Fac Fac Gar Fac Gar Fac Was Fac Upp Traps Triggered 36 | . 1 . . 1 2 1 5 15 . 3 2 . 4 2 Indirectly 11 | . . . . . . . 1 6 . . . . 4 . Trap Hack Attempts 368 | . . . . . 168 113 7 23 47 . 2 . 8 . Triggered 3 | . . . . . 2 . . . 1 . . . . . Disarmed 3 | . . . . . 1 1 . . . . 1 . . . Reprogrammed 52 | . 2 . . . 11 16 2 5 7 . . . 9 . Reused 21 | . . . . . 1 15 2 . . . . . 2 1 Traps Extracted 38 | . . . . . 11 16 3 2 . . . . 1 5 Installed 43 | . . . . . 1 24 5 . . . . . 1 12 Triggered 21 | . . . . . 1 15 2 . . . . . 2 1 Exploded 2 | . . . . . 2 . . . . . . . . . Machines | -11 -10 -10 -10 -9 -8 -7 -6 -6 -6 -6 -5 -5 -5 -5 ---------- Run | Scr Mat Min Exi Min Mat Fac Fac Gar Fac Gar Fac Was Fac Upp Machines Disabled 39 | . . . . . 8 2 1 2 1 2 . . 23 . Max in Single Turn 2 | . . . . . 1 1 1 1 1 1 . . 2 . Garrison Access 2 | . . . . . . 1 . . . . . . 1 . Garrison Relay 4 | . . . . . . . . 2 . 2 . . . . Machines Sabotaged . | . . . . . . . . . . . . . . . Garrisons Compromised . | . . . . . . . . . . . . . . . Overloaded Fab Kills . | . . . . . . . . . . . . . . . Fab Network Shutdowns 1 | . . . . . . . . . . . . . 1 . Hacking | -11 -10 -10 -10 -9 -8 -7 -6 -6 -6 -6 -5 -5 -5 -5 --------- Run | Scr Mat Min Exi Min Mat Fac Fac Gar Fac Gar Fac Was Fac Upp Machines Accessed 49 | . 8 . 2 1 4 16 8 . 3 . . . 7 . Terminals 25 | . 6 . . . 2 9 4 . 1 . . . 3 . Fabricators 6 | . . . . . . 2 1 . 1 . . . 2 . Repair Stations 6 | . 1 . . . . 3 1 . . . . . 1 . Recycling Units 1 | . 1 . . . . . . . . . . . . . Scanalyzers 3 | . . . . . 1 1 1 . . . . . . . Garrison Access 5 | . . . . . 1 1 1 . 1 . . . 1 . Total Hacks 135 | . 26 . 5 1 7 46 23 . 8 . . . 19 . Successful 80 | . 17 . 5 1 4 19 18 . 6 . . . 10 . Failed 55 | . 9 . . . 3 27 5 . 2 . . . 9 . Catastrophic 6 | . . . . . 1 4 . . 1 . . . . . Database Lockouts . | . . . . . . . . . . . . . . . Manual 32 | . 14 . 1 . 4 7 4 . 2 . . . . . Terminals 77 | . 21 . . . 4 28 10 . 4 . . . 10 . Fabricators 15 | . . . . . . 6 2 . 2 . . . 5 . Repair Stations 18 | . 4 . . . . 8 4 . . . . . 2 . Recycling Units 1 | . 1 . . . . . . . . . . . . . Scanalyzers 9 | . . . . . 2 1 6 . . . . . . . Garrison Access 9 | . . . . . 1 3 1 . 2 . . . 2 . Terminal Hacks 43 | . 11 . 5 1 2 11 6 . 3 . . . 4 . Record 7 | . . . 4 . . . 1 . 2 . . . . . Part Schematic 1 | . 1 . . . . . . . . . . . . . Robot Schematic 1 | . . . . . . . . . . . . . 1 . Robot Analysis 2 | . 2 . . . . . . . . . . . . . Prototype ID Bank 1 | . . . . . . 1 . . . . . . . . Open Door 1 | . . . . 1 . . . . . . . . . . Branch Access Points 1 | . . . . . . . 1 . . . . . . . Emergency Access Points 3 | . . . . . . 2 1 . . . . . . . Machine Index 1 | . . . . . . . . . . . . . 1 . Terminal Index 2 | . 1 . . . . 1 . . . . . . . . Alert Level 2 | . . . . . . 2 . . . . . . . . Unreport Threat 1 | . . . . . . 1 . . . . . . . . Locate Traps 10 | . 3 . . . 1 3 1 . 1 . . . 1 . Reprogram Traps 2 | . 1 . . . . . . . . . . . 1 . Recall Extermination 1 | . . . . . . 1 . . . . . . . . Zone Layout 6 | . 3 . . . 1 . 2 . . . . . . . EX-Prototype ID Bank 1 | . . . 1 . . . . . . . . . . . Fabricator Hacks 8 | . . . . . . 1 2 . 1 . . . 4 . Load Schematic 4 | . . . . . . . 1 . 1 . . . 2 . Build 4 | . . . . . . 1 1 . . . . . 2 . Repair Station Hacks 10 | . 4 . . . . 3 3 . . . . . . . Scan Component 6 | . 2 . . . . 2 2 . . . . . . . Repair 4 | . 2 . . . . 1 1 . . . . . . . Recycling Unit Hacks . | . . . . . . . . . . . . . . . Scanalyzer 8 | . . . . . 2 . 6 . . . . . . . Insert Component 4 | . . . . . 1 . 3 . . . . . . . Analyze 4 | . . . . . 1 . 3 . . . . . . . Garrison Access Hacks 6 | . . . . . . 1 1 . 2 . . . 2 . Unlock Access 3 | . . . . . . . 1 . 1 . . . 1 . Seal Access 1 | . . . . . . 1 . . . . . . . . Coupler Status 2 | . . . . . . . . . 1 . . . 1 . Unauthorized Hacks 5 | . 2 . . . . 3 . . . . . . . . Terminals 2 | . 1 . . . . 1 . . . . . . . . Track 2 | . 1 . . . . 1 . . . . . . . . Fabricators 2 | . . . . . . 2 . . . . . . . . Prioritize 1 | . . . . . . 1 . . . . . . . . Haulers 1 | . . . . . . 1 . . . . . . . . Repair Stations . | . . . . . . . . . . . . . . . Recycling Units 1 | . 1 . . . . . . . . . . . . . Tunnel 1 | . 1 . . . . . . . . . . . . . Scanalyzers . | . . . . . . . . . . . . . . . Garrison Access . | . . . . . . . . . . . . . . . Data Cores Recovered 2 | . 1 . . . . . . . . . . . 1 . Used 2 | . 1 . . . . . . . . . . . 1 . Hacking Detections 39 | . 6 . . . 4 14 7 . 3 . . . 5 . Full Trace Events 4 | . . . . . . 2 1 . . . . . 1 . Feedback Events . | . . . . . . . . . . . . . . . Feedback Blocked . | . . . . . . . . . . . . . . . Robot Schematics Acquired 1 | . . . . . . . . . . . . . 1 . Robots Built . | . . . . . . . . . . . . . . . Matter . | . . . . . . . . . . . . . . . Time . | . . . . . . . . . . . . . . . Total Robot Build Rating . | . . . . . . . . . . . . . . . Part Schematics Acquired 4 | . 1 . . . . . 3 . . . . . . . Parts Built 4 | . . . . . . 2 1 . . . . . 1 . Matter 555 | . . . . . . 190 146 . . . . . 219 . Time 178 | . . . . . . 47 73 . . . . . 58 . Total Part Build Rating 16 | . . . . . . 10 3 . . . . . 3 . Parts Repaired 4 | . 2 . . . . 1 1 . . . . . . . Time 140 | . 52 . . . . 44 44 . . . . . . . Parts Recycled . | . . . . . . . . . . . . . . . Recycled Matter . | . . . . . . . . . . . . . . . Retrieved Matter . | . . . . . . . . . . . . . . . Retrieved Components . | . . . . . . . . . . . . . . . Parts Scanalyzed 4 | . . . . . 1 . 3 . . . . . . . Part Schematics Acquired 3 | . . . . . . . 3 . . . . . . . Parts Damaged . | . . . . . . . . . . . . . . . Bothacking | -11 -10 -10 -10 -9 -8 -7 -6 -6 -6 -6 -5 -5 -5 -5 ------------ Run | Scr Mat Min Exi Min Mat Fac Fac Gar Fac Gar Fac Was Fac Upp Used RIF Installer 2 | . . . . . . . . 1 . 1 . . . . Hotswap 1 | . . . . . . . . . . 1 . . . . Robots Hacked 15 | . . . . . 1 . . 1 4 . 2 . 7 . Non-combat 11 | . . . . . 1 . . . 2 . 1 . 7 . Combat 4 | . . . . . . . . 1 2 . 1 . . . Robot Hacks Applied 31 | . . . . . 1 . . 1 5 . 4 . 20 . parse_system 3 | . . . . . 1 . . . 1 . . . 1 . no_distress 7 | . . . . . . . . . 1 . 1 . 5 . find_chute 1 | . . . . . . . . . . . 1 . . . drop_inventory 1 | . . . . . . . . . . . . . 1 . find_recycling 3 | . . . . . . . . . 1 . . . 2 . check_alert 1 | . . . . . . . . . . . . . 1 . purge_threat 8 | . . . . . . . . . . . . . 8 . block_reporting 1 | . . . . . . . . . . . . . 1 . overwrite_iff 3 | . . . . . . . . . 1 . 2 . . . streamctrl_high 1 | . . . . . . . . . 1 . . . . . formatsys_low 1 | . . . . . . . . . . . . . 1 . formatsys_high 1 | . . . . . . . . 1 . . . . . . Relay Couplers Released 23 | . . . . . . . 4 8 . 9 . . 2 . Machine Destruction 19 | . . . . . . . . 8 . 9 . . 2 . Programmers 4 | . . . . . . . 4 . . . . . . . Attached 5 | . . . . . . . . 1 1 . 2 . 1 . Robots Rewired . | . . . . . . . . . . . . . . . Allies Hacked 1 | . . . . . . . . . . . . . 1 . Hacks Repelled 1 | . . . . . . . . . . . . . 1 . Allies | -11 -10 -10 -10 -9 -8 -7 -6 -6 -6 -6 -5 -5 -5 -5 -------- Run | Scr Mat Min Exi Min Mat Fac Fac Gar Fac Gar Fac Was Fac Upp Total Allies 28 | . . 2 . 1 . . . 1 2 . 1 20 1 . Largest Group 20 | . . 2 2 1 1 . . 1 1 . 1 20 19 . Highest-Rated Group 730 | . . 42 42 31 31 . . 32 32 . 29 730 684 . Highest-Rated Ally 50 | . . 31 31 31 31 . . 32 32 . 29 50 50 . Total Orders . | . . . . . . . . . . . . . . . Ally Attacks 132 | . . 9 . 2 1 . . . 9 . 5 24 82 . Total Damage 4673 | . . 129 . 41 . . . . 310 . 96 777 3320 . Kills 29 | . . 2 . 1 . . . . 5 . . 2 19 . Allies Corrupted 2 | . . . . . . . . . . . . . 2 . Allies Melted . | . . . . . . . . . . . . . . . Intel | -11 -10 -10 -10 -9 -8 -7 -6 -6 -6 -6 -5 -5 -5 -5 ------- Run | Scr Mat Min Exi Min Mat Fac Fac Gar Fac Gar Fac Was Fac Upp Robot Analysis Total 2 | . 2 . . . . . . . . . . . . . Derelict Logs Recovered 1 | . . . . . . . . . . . . . . 1 Drone Launches . | . . . . . . . . . . . . . . . Drone Recoveries . | . . . . . . . . . . . . . . . Exploration | -11 -10 -10 -10 -9 -8 -7 -6 -6 -6 -6 -5 -5 -5 -5 ------------- Run | Scr Mat Min Exi Min Mat Fac Fac Gar Fac Gar Fac Was Fac Upp Turns Passed 19043 | 92 1224 911 792 284 2019 4003 1719 1426 744 927 556 692 2839 815 Spaces Moved 8615 | 45 627 501 463 149 659 1851 979 586 329 268 248 364 1146 400 Core 11 | 2 . . . . . . . . . . . . 9 . Treads 6263 | 43 624 501 463 149 659 1317 . 296 98 268 248 364 864 369 Legs 3 | . 3 . . . . . . . . . . . . . Wheels 2293 | . . . . . . 534 979 290 231 . . . 228 31 Hover 45 | . . . . . . . . . . . . . 45 . Flight . | . . . . . . . . . . . . . . . Fastest Speed 50 | 50 150 160 160 180 180 113 120 120 140 182 182 180 60 110 Average Speed 169 | 155 159 160 169 180 180 178 120 186 163 182 182 180 183 182 Slowest Speed 1900 | 160 180 160 180 200 180 270 120 230 225 182 182 182 1900 200 Overloaded Moves . | . . . . . . . . . . . . . . . Propulsion Burnouts . | . . . . . . . . . . . . . . . Robots Hopped . | . . . . . . . . . . . . . . . Cave-ins Triggered . | . . . . . . . . . . . . . . . Exploration Rate (%) 48 | 4 98 88 89 49 49 39 24 71 8 47 7 95 25 29 Regions Visited 14 Branch Regions 4 Pre-discovered Areas 3 | . 1 1 1 . . . . . . . . . . . Known Exits Taken 2 | . . . . . . . 1 . 1 . . . . . Unknown Exits Taken 8 | 1 1 1 1 1 1 1 . . . . . . 1 . Scrap Searched 3 | . . 1 . 1 . . . . . . . . . 1 Spaces Dug 30 | . . . . . . 9 5 1 8 . 3 . 4 . Terrain Destroyed 161 | . 5 . . . 8 9 7 22 11 5 3 . 78 13 Melee 30 | . . . . . . 9 5 1 8 . 3 . 4 . Projectile 19 | . . . . . 2 . 2 3 3 5 . . 4 . AOE 112 | . 5 . . . 6 . . 18 . . . . 70 13 Terrain Rammed . | . . . . . . . . . . . . . . . Walls Destroyed . | . . . . . . . . . . . . . . . Machines Disabled . | . . . . . . . . . . . . . . . Actions | -11 -10 -10 -10 -9 -8 -7 -6 -6 -6 -6 -5 -5 -5 -5 --------- Run | Scr Mat Min Exi Min Mat Fac Fac Gar Fac Gar Fac Was Fac Upp Total 11898 | 58 770 558 475 159 1251 2439 1442 814 468 663 339 400 1581 481 Wait 1444 | . 63 25 . 2 192 249 323 40 27 347 63 1 84 28 Move 8603 | 44 626 500 462 148 658 1850 979 585 328 267 248 363 1145 400 Hop . | . . . . . . . . . . . . . . . Pick Up 151 | 4 11 2 7 4 18 26 17 14 3 3 1 9 20 12 Fast Attach 80 | 6 8 1 1 2 5 8 3 1 3 . . 2 33 7 Attach 73 | . . 4 . . 14 5 6 10 3 . 4 . 24 3 Detach 15 | . . . . . 6 . 1 . . . 1 . 6 1 Swap 161 | 1 7 . 1 1 32 38 23 17 10 10 4 4 13 . Drop 177 | . 14 . 4 . 27 48 14 6 4 . 2 18 26 14 Fire 622 | 3 41 26 . 2 129 67 42 56 25 24 7 . 199 1 Melee 100 | . . . . . 1 11 14 15 18 6 7 3 22 3 Ram . | . . . . . . . . . . . . . . . Kick . | . . . . . . . . . . . . . . . Crush . | . . . . . . . . . . . . . . . Escape Stasis 60 | . . . . . . . 8 46 . 6 . . . . Rewire 1 | . . . . . . . . 1 . . . . . . Trap 411 | . . . . . 169 137 12 23 47 . 2 . 9 12 Miscellaneous . | . . . . . . . . . . . . . . . Route ------- -11/Scrapyard -10/Materials (discovered 5 exits: [*Mat x3] / [*Min x2]) -10/Mines (discovered 3 exits: [*Mat x2] / *Exi) -10/Exiles -9/Mines (discovered 2 exits: *Mat x2) -8/Materials -7/Factory (discovered 2 exits: *Fac / [*Low]) -6/Factory (discovered 3 exits: Low x2 / Gar) -6/Garrison (discovered 2 exits: *Fac x2) -6/Factory -6/Garrison -5/Factory -5/Waste -5/Factory -5/Upper Caves History --------- Turn | Location | Event 2 | -11/Scrapyard | Met Revision 17 25 | -11/Scrapyard | Discovered new exit (range 15) 93 | -11/Scrapyard | Entered Materials 187 | -10/Materials | Discovered new exit (range 6) 312 | -10/Materials | Build established: Mutant 325 | -10/Materials | Discovered new exit (range 4) 539 | -10/Materials | Discovered new exit (range 7) 658 | -10/Materials | Discovered new exit (range 15) 702 | -10/Materials | Repaired Lgt. Treads 729 | -10/Materials | Repaired Lgt. Treads 870 | -10/Materials | Discovered new exit (range 14) 1317 | -10/Materials | Entered Mines 1377 | -10/Mines | Met a Derelict bent on vengeance 1457 | -10/Mines | Core integrity fell below 50% 1505 | -10/Mines | Lost 3 parts (1p2n) 1543 | -10/Mines | Core integrity fell below 20% 1796 | -10/Mines | Learned location of Storage (-7) 1798 | -10/Mines | Discovered new exit (range 5) 2127 | -10/Mines | Discovered new exit (range 5) 2213 | -10/Mines | Deemed a non-threat by the Exiles lab entrance 2213 | -10/Mines | Discovered new exit (range 5) 2228 | -10/Mines | Entered Exiles 2228 | -10/Exiles | Accompanied by 2 allies 2258 | -10/Exiles | Led the pair of lost Derelicts to a safe place 2272 | -10/Exiles | Met 8R-AWN 2298 | -10/Exiles | Met EX-HEX 2375 | -10/Exiles | Met EX-DEC 2403 | -10/Exiles | Visited The Gauntlet 2572 | -10/Exiles | Learned location of Zion (-6) 2771 | -10/Exiles | Met EX-BIN 2796 | -10/Exiles | Aligned with FarCom system 2798 | -10/Exiles | Given EX-Vault access code 2839 | -10/Exiles | Opened EX-Vault 2852 | -10/Exiles | Found Firepult 2891 | -10/Exiles | Warned to stay clear of 0b10 Research branches 2983 | -10/Exiles | Build established: Hauler-Mutant 3002 | -10/Exiles | Discovered new exit (range 12) 3020 | -10/Exiles | Left Exiles lab with Firepult 3020 | -10/Exiles | Entered Mines 3036 | -9/Mines | Met a Derelict who couldn't figure out how to use a Trap Extractor 3135 | -9/Mines | Discovered new exit (range 9) 3148 | -9/Mines | Received a Mining Laser from a helpful Derelict 3244 | -9/Mines | Discovered new exit (range 7) 3285 | -9/Mines | Assembled infested the area 3304 | -9/Mines | Entered Materials 3304 | -8/Materials | Accompanied by 1 ally 3304 | -8/Materials | Evolved 4 slots: Propulsion x1, Utility x3 3760 | -8/Materials | Garrison activated, responded to threat 4169 | -8/Materials | Garrison activated, responded to threat 4497 | -8/Materials | Destroyed 7 combat bots 5092 | -8/Materials | Discovered new exit (range 16) 5304 | -8/Materials | First assault squad dispatched 5323 | -8/Materials | Entered Factory 5323 | -7/Factory | Evolved 2 slots: Propulsion x1, Utility x1 5392 | -7/Factory | Build established: Trapper-Mutant 5772 | -7/Factory | Discovered new exit (range 5) 6473 | -7/Factory | Build established: Hauler-Mutant 6810 | -7/Factory | Build established: Scavenger-Mutant 7575 | -7/Factory | Fabricated Magnetic Acceleration Cannon? 7616 | -7/Factory | Build established: Hauler-Mutant 8190 | -7/Factory | Discovered new exit (range 12) 8456 | -7/Factory | Repaired Flak Gun 9326 | -7/Factory | Entered another Factory area 9326 | -6/Factory | Evolved 2 slots: Utility x2 9831 | -6/Factory | Identified exit to Lower Caves 10314 | -6/Factory | Fabricated Hacking Suite? 10632 | -6/Factory | Repaired Arm. Huge Wheel 11045 | -6/Factory | Identified exit to Garrison 11045 | -6/Factory | Entered Garrison 11216 | -6/Garrison | Triggered checkpoint 11234 | -6/Garrison | Triggered checkpoint 11252 | -6/Garrison | Triggered checkpoint 11298 | -6/Garrison | Destroyed 9 combat bots 11508 | -6/Garrison | Discovered new exit (range 14) 11695 | -6/Garrison | Spotted B-75 Beast 11788 | -6/Garrison | Triggered checkpoint 11882 | -6/Garrison | Discovered new exit (range 10) 11916 | -6/Garrison | Installed Relay Interface Framework 12004 | -6/Garrison | Triggered checkpoint 12044 | -6/Garrison | Garrison Relay disabled 12246 | -6/Garrison | Triggered checkpoint 12299 | -6/Garrison | Garrison Relay disabled 12471 | -6/Garrison | Entered Factory 12471 | -6/Factory | Accompanied by 1 ally 12793 | -6/Factory | Identified exit to Garrison 13097 | -6/Factory | Garrison activated, responded to threat 13215 | -6/Factory | Entered Garrison 13225 | -6/Garrison | Expanded RIF knowledge: Hotswap 13326 | -6/Garrison | Triggered checkpoint 13396 | -6/Garrison | Garrison Relay disabled 13800 | -6/Garrison | Triggered checkpoint 14028 | -6/Garrison | Triggered checkpoint 14075 | -6/Garrison | Garrison Relay disabled 14126 | -6/Garrison | Discovered new exit (range 10) 14142 | -6/Garrison | Entered Factory 14142 | -5/Factory | Evolved 2 slots: Utility x2 14373 | -5/Factory | Build established: Bothacker-Mutant 14698 | -5/Factory | Sucked down chute 14698 | -5/Factory | Entered Waste 14699 | -5/Waste | Joined by Warlord forces that had cleared the area 14799 | -5/Waste | Found Prototype Reactor 14870 | -5/Waste | A Compactor rumbled back to life 14870 | -5/Waste | Spotted C-40 Crusher 14871 | -5/Waste | Allies destroyed C-40 Crusher 14941 | -5/Waste | Build established: Hauler-Mutant 15202 | -5/Waste | Found Prototype Device 15231 | -5/Waste | Found Damper Plating 15297 | -5/Waste | Discovered new exit (range 16) 15330 | -5/Waste | A Compactor rumbled back to life 15330 | -5/Waste | Spotted C-40 Crusher 15332 | -5/Waste | Allies destroyed C-40 Crusher 15339 | -5/Waste | Found Damper Plating 15390 | -5/Waste | Entered Factory 15390 | -5/Factory | Accompanied by 19 allies 15511 | -5/Factory | Identified Exp. Focal Shield 16099 | -5/Factory | Identified exit to Garrison 16296 | -5/Factory | Fabricated Adv. EMP Blaster? 16385 | -5/Factory | Local fabrication network quarantined 16590 | -5/Factory | First assault squad dispatched 16642 | -5/Factory | Build established: Hacker-Mutant 16821 | -5/Factory | Garrison activated, responded to threat 16968 | -5/Factory | Build established: Hauler-Mutant 17364 | -5/Factory | Destroyed 9 combat bots 17431 | -5/Factory | Lost 10 parts (2n6u2w) 17524 | -5/Factory | Lost 5 parts (1p2u2w) 17739 | -5/Factory | Core integrity fell below 50% 17762 | -5/Factory | Build established: Bothacker-Mutant 17874 | -5/Factory | Lost 11 parts (4n3u4w) 17970 | -5/Factory | Destroyed 8 combat bots 18141 | -5/Factory | Discovered new exit (range 6) 18225 | -5/Factory | Core integrity fell below 20% 18229 | -5/Factory | Entered Upper Caves 18302 | -5/Upper Caves | Build established: Scavenger-Mutant 18431 | -5/Upper Caves | Learned 4 Factory zone layouts 18936 | -5/Upper Caves | Lost 3 parts (1n2w) 19031 | -5/Upper Caves | Spotted B-75 Beast 19044 | -5/Upper Caves | Destroyed by B-75 Beast with Heavy Machine Gun Last Messages --------------- 19029_ Found Microactuators. 19029_ Found 24 Matter. 19031_ Acquired Microactuators. 19034_ Acquired 10 matter. 19035_ Mic. Fission Core destroyed. 19036_ Wheel destroyed. 19037_ Acquired System Backup Module. 19038_ System corrupted: Heat flow error (+192). 19038_ Med. Treads destroyed. 19038_ Dropped Neutrino Core. 19039_ Med. Treads destroyed. 19040_ S-27 Virus destroyed. 19040_ Smartbomb Launcher destroyed. 19040_ System Backup Module destroyed. 19040_ Knocked back. 19041_ Acquired 14 matter. 19042_ Dropped Dirty Bomb Trap. 19043_ Installed Dirty Bomb Trap. 19043_ Flexi-carbon Leg destroyed. 19044_ Lgt. Nuclear Core fries itself beyond repair. Map ----- +----------------------------------------------------+ | ??????????????????????????????????## % % | | ??????????????????????????????????# % | | ?????????????????????????????????## " " | | ?????????????????????????????????# % ### " | | ?????????????????????????????????# %#### ##?# | | ?????????????????????????????????#?????####??# "" | | ????????????????????????????????????????######!""" | | ????????????????????????????#####???????# # "" | | ????????????????????????????# ????????# ! | | ????????????????????????????? %%??????### | | ????????????????????????????? ?????## ##### | | ????????????????????????????? #?????# %!##???? | | ?????????????????????????????#%#????## !####### | | ?????????????????????######### #????# ## # | | ?????????????????????? % %# #????## # | | ?????????????????????????# ##????# # | | ?????????????????????#???#% %###### # | | ?????????????????????# ???# %* % ## # | | ?????????????????????# ???# ####### #### ## | | ??????????????######## #### ##???# ##???##? | | ??????????? ### ###??????? | | ??????????? % % ##????????? | | ???????????????######### ### #####?????????? | | ???????????????????????# #?## ###?????????????? | | ???????????????????????# #??# ##???????????????? | | ??????????????????????##!@#??# ##????????????????? | | ??????????????????????# s #??# #?????????????????? | | ?????????????????????# ==%;??# #?????????????????? | | ?????????????????????# [%s %? #?????????????????? | | ?????????????????????# ####?????????????????? | | ?????????????????????## ?????????????????????? | | ?????????????????????? %[ ????????????????????? | | ????????????????????? BB ????????????????????? | | ?????????????????????# BB ???????????????????? | | ?????????????????????# ???????????????????? | | ?????????????????????# ??????????????????? | | ?????????????????????## ??????????????????? | | ??????????????????????# # ?????????????????? | | ?????????????????????? ? #####?????????????????? | | ??????????????????????##? #?????????????????????? | | ????????????????????????? #?????????????????????? | | ????????????????????????? ??????????????????????? | | ?????????????????????????????????????????????????? | | ?????????????????????????????????????????????????? | | ?????????????????????????????????????????????????? | | ?????????????????????????????????????????????????? | | ?????????????????????????????????????????????????? | | ?????????????????????????????????????????????????? | | ?????????????????????????????????????????????????? | | ?????????????????????????????????????????????????? | +----------------------------------------------------+ Best States ------------- Heat Dissipation 71 Energy Generation 21 Energy Capacity 970 Matter Stores 550 Matter Capacity 550 Sight Range 16 Terrain Scan Density 10 Armor Coverage 1200 Resistance: KI 30 Resistance: EM 90 Weapon Cycling 15 Melee Speed Boost 20 Evasion (%) 40 Targeting Accuracy 5 Launcher Accuracy 20 Target Analysis 6 Recoil Reduction 4 Matter Filtering 30 Kinecelleration 30 Salvage Targeting 1 Offensive Hacking 30 Defensive Hacking 14 Relay Coupler Types 48 Relay Coupler Value 2 Item Schematics ----------------- Hcp. Storage Unit | -10/Materials | Hacked Weapon Cycler | -6/Factory | Scanalyzed Adv. EMP Blaster | -6/Factory | Scanalyzed Hacking Suite | -6/Factory | Scanalyzed Robot Schematics ------------------ G-50 Soldier | -5/Factory | Hacked Fabricated ------------ Magnetic Acceleration Cannon | x2 | -7/Factory | Preloaded Hacking Suite | x1 | -6/Factory Adv. EMP Blaster | x1 | -5/Factory Alien Tech Used ----------------- None Achievements -------------- None Challenges ------------ None Game ------ Seed TransportGodBox Manual? 0 Play Time 02:56:44 Cumulative 306.0 hours Start 2021.10.09 @ 17:04:47 End 2021.10.09 @ 20:16:08 Sessions 1 Manual Loads 0 Difficulty Rogue Special Mode None Game No. 115 Rogue 115 Adventurer 0 Explorer 0 Win Type - Total 12 Types 10/0/1/1/0/0/0/0/0 Lore% 66 Gallery% 87 Achievement% 67 Wizard Run 0 Options --------- ASCII 0 Keyboard 0 Movement Numpad Keybinds 0 Fullscreen 1 Font 18/SmallcapsGlow Map View 76x50 Tactical HUD 1 Map Filters NONE Filters NONE Steam 1 RUN: 7e644ebf-3215-44ff-8c44-9f41c5080fa3